bitfinex/quotes_SOLUSD_20250714
["timestamp","ask_amount","ask_price","bid_price","bid_amount"]
[1752500209738,0.06,166.5,166.46,15.67485733]
[1752500210219,0.06,166.5,166.49,16.78468397]
[1752500210335,15.73485733,166.5,166.4,89.6]
[1752500210539,15.67485733,166.43,166.37,32.4595413]
[1752500210844,15.67485733,166.44,166.39,32.4595413]
[1752500211041,15.67485733,166.45,166.41,16.78468397]
[1752500211348,0.06,166.5,166.41,16.78468397]
[1752500211550,15.67485733,166.46,166.41,32.4595413]
[1752500211860,15.67485733,166.46,166.41,122.0595413]
[1752500212260,6.06605156,166.5,166.43,16.78468397]
[1752500212561,0.06,166.5,166.47,16.78468397]
[1752500212765,0.06,166.5,166.47,15.67485733]
[1752500213261,0.06,166.5,166.48,16.78468397]
[1752500213560,0.06,166.5,166.48,32.4595413]
[1752500213765,15.67485733,166.49,166.48,16.78468397]
[1752500213970,15.67485733,166.49,166.44,95.8789]
[1752500214171,15.67485733,166.49,166.45,16.78468397]
[1752500214675,15.67485733,166.48,166.45,16.78468397]
[1752500215045,6.06605937,166.5,166.45,16.78468397]
[1752500215249,15.67485733,166.46,166.44,16.78468397]
[1752500215464,6.06605937,166.5,166.41,16.78468397]
[1752500215465,15.67485733,166.45,166.41,16.78468397]
[1752500215651,15.67485733,166.43,166.41,16.78468397]
[1752500215847,15.67485733,166.43,166.38,32.4595413]
[1752500216047,15.67485733,166.42,166.38,16.78468397]
[1752500216253,15.0172905,166.48,166.38,16.78468397]
[1752500216254,15.67485733,166.43,166.38,16.78468397]
[1752500216458,15.67485733,166.4,166.35,15.67485733]
[1752500216663,1.6149,166.46,166.38,15.67485733]
[1752500216873,15.67485733,166.42,166.37,41.67485733]
[1752500217060,15.67485733,166.42,166.38,16.78468397]
[1752500217695,15.67485733,166.43,166.38,32.4595413]
[1752500217852,1.6149,166.46,166.38,16.78468397]
[1752500218053,15.67485733,166.4,166.38,16.78468397]
[1752500218464,15.67485733,166.41,166.38,16.78468397]
[1752500218871,6.00781015,166.45,166.38,16.78468397]
[1752500219071,15.67485733,166.41,166.38,16.78468397]
[1752500219375,6.00781015,166.45,166.36,16.78468397]
[1752500219376,15.67485733,166.39,166.36,16.78468397]
[1752500219571,21.02733553,166.45,166.36,16.78468397]
[1752500219572,15.67485733,166.38,166.36,16.78468397]
[1752500219878,15.67485733,166.37,166.34,16.78468397]
[1752500220079,15.67485733,166.36,166.34,16.78468397]
[1752500220275,15.67485733,166.36,166.35,17.43468397]
[1752500220459,16.20485733,166.36,166.27,6.5714]
[1752500220661,0.53,166.35,166.31,0.65]
[1752500220858,15.67485733,166.32,166.31,17.43468397]
[1752500221175,10.11593759,166.32,166.31,16.78468397]
[1752500221678,2.0688,166.37,166.32,16.78468397]
[1752500221876,2.0688,166.37,166.34,16.78468397]
[1752500222050,16.12735929,166.35,166.34,16.78468397]
[1752500222253,10.64593759,166.35,166.32,16.78468397]
[1752500222467,2.0688,166.37,166.33,0.65]
[1752500222665,0.53,166.36,166.33,17.43468397]
[1752500222983,10.11593759,166.34,166.33,17.43468397]
[1752500223181,0.53,166.41,166.34,16.78468397]
[1752500223382,10.11593759,166.4,166.36,16.78468397]
[1752500223564,10.11593759,166.4,166.38,16.78468397]
[1752500223761,10.11593759,166.41,166.4,16.78468397]
[1752500224294,10.11593759,166.43,166.41,16.78468397]
[1752500224455,10.11593759,166.44,166.41,16.78468397]
[1752500224656,10.11593759,166.43,166.37,16.78468397]
[1752500224858,10.11593759,166.43,166.39,16.78468397]
[1752500225059,15.67921041,166.43,166.39,16.78468397]
[1752500225597,15.67921041,166.4,166.37,16.78468397]
[1752500225764,15.67921041,166.38,166.37,16.78468397]
[1752500226076,15.67921041,166.39,166.34,32.46389438]
[1752500226279,15.67921041,166.35,166.28,40.2033]
[1752500226475,15.67921041,166.33,166.29,16.78468397]
[1752500226782,15.67921041,166.34,166.29,41.67921041]
[1752500226979,15.67921041,166.32,166.28,6.1237]
[1752500227186,15.67921041,166.32,166.29,16.78468397]
[1752500227576,15.67921041,166.34,166.29,32.46389438]
[1752500227762,1.6229,166.38,166.31,16.78468397]
[1752500227763,15.67921041,166.35,166.31,16.78468397]
[1752500228080,15.67921041,166.34,166.31,16.78468397]
[1752500228283,15.67921041,166.34,166.3,16.78468397]
[1752500228466,15.67921041,166.36,166.31,15.67921041]
[1752500228667,6.1554,166.41,166.29,16.78468397]
[1752500228870,13.71206674,166.49,166.37,16.78468397]
[1752500229072,15.67921041,166.44,166.37,16.78468397]
[1752500229371,15.67921041,166.43,166.39,16.78468397]
[1752500229574,15.67921041,166.42,166.37,15.67921041]
[1752500229768,15.67921041,166.43,166.39,16.78468397]
[1752500230181,15.67921041,166.42,166.37,15.67921041]
[1752500230373,15.67921041,166.4,166.37,16.78468397]
[1752500230570,15.67921041,166.39,166.37,16.78468397]
[1752500230786,15.67921041,166.4,166.35,32.46389438]
[1752500231261,15.67921041,166.4,166.35,16.78468397]
[1752500231463,21.02480927,166.47,166.35,32.46389438]
[1752500231676,15.67921041,166.41,166.35,122.06389438]
[1752500231885,15.67921041,166.41,166.36,15.67921041]
[1752500232071,15.67921041,166.44,166.39,32.46389438]
[1752500232273,15.67921041,166.44,166.39,122.06389438]
[1752500232558,15.67921041,166.45,166.41,16.78468397]
[1752500233167,15.67921041,166.45,166.4,16.78468397]
[1752500233490,15.67921041,166.46,166.41,15.67921041]
[1752500233988,7.66004602,166.49,166.39,16.78468397]
[1752500234190,15.67921041,166.45,166.4,15.67921041]
[1752500234579,6.00759769,166.46,166.39,16.78468397]
[1752500234876,15.67921041,166.45,166.4,15.67921041]
[1752500235271,15.67921041,166.41,166.34,6.0062]
[1752500235467,15.67921041,166.4,166.37,16.78468397]
[1752500235667,21.0261609,166.46,166.37,16.78468397]
[1752500235988,15.67921041,166.4,166.37,16.78468397]
[1752500236195,15.67921041,166.38,166.35,16.78468397]
[1752500236492,6.00889316,166.42,166.35,16.78468397]
[1752500236674,15.67921041,166.37,166.35,16.78468397]
[1752500236861,15.67921041,166.37,166.34,16.78468397]
[1752500237068,15.67921041,166.35,166.31,16.81468397]
[1752500237287,15.67921041,166.33,166.31,16.81468397]
[1752500237492,1.5339,166.41,166.31,0.03]
[1752500237788,15.67921041,166.33,166.31,0.03]
[1752500237995,1.5339,166.41,166.31,0.03]
[1752500238172,15.67921041,166.34,166.31,0.03]
[1752500238687,15.67921041,166.32,166.31,0.03]
[1752500239266,21.03491796,166.39,166.31,0.03]
[1752500239267,15.67921041,166.35,166.31,16.81468397]
[1752500239572,32.58,166.38,166.31,0.03]
[1752500239777,15.67921041,166.34,166.31,0.03]
[1752500240088,15.67921041,166.32,166.31,0.03]
[1752500241474,21.03433069,166.4,166.31,0.03]
[1752500241791,15.67921041,166.34,166.31,0.03]
[1752500241990,15.67921041,166.32,166.31,0.03]
[1752500242199,15.67921041,166.33,166.31,0.03]
[1752500242392,15.67921041,166.35,166.31,16.81468397]
[1752500243268,15.67921041,166.36,166.31,15.70921041]
[1752500243691,1.5339,166.41,166.34,15.67921041]
[1752500243998,15.67921041,166.38,166.35,16.78468397]
[1752500244199,32.58,166.42,166.35,16.78468397]
[1752500244200,15.67921041,166.39,166.35,16.78468397]
[1752500244496,15.67921041,166.41,166.37,16.78468397]
[1752500244872,15.67921041,166.4,166.35,32.46389438]
[1752500245089,15.67921041,166.39,166.35,16.78468397]
[1752500245291,15.67921041,166.4,166.35,32.46389438]
[1752500245507,15.67921041,166.37,166.35,16.78468397]
[1752500245684,15.67921041,166.36,166.34,16.78468397]
[1752500245993,15.67921041,166.37,166.34,16.78468397]
[1752500246493,15.67921041,166.38,166.34,16.78468397]
[1752500246697,15.67921041,166.4,166.36,16.78468397]
[1752500247575,15.67921041,166.42,166.38,16.78468397]
[1752500248076,0.06,166.5,166.36,16.78468397]
[1752500248287,15.67921041,166.46,166.41,32.46389438]
[1752500248596,38.666006,166.5,166.41,32.46389438]
[1752500248597,38.666006,166.5,166.43,16.78468397]
[1752500248771,15.67921041,166.48,166.43,15.67921041]
[1752500248971,15.67921041,166.47,166.43,16.78468397]
[1752500249208,15.67921041,166.46,166.43,16.78468397]
[1752500249382,15.67921041,166.47,166.42,32.46389438]
[1752500249698,15.67921041,166.46,166.42,16.78468397]
[1752500249900,15.67921041,166.47,166.42,32.46389438]
[1752500250203,0.06,166.5,166.42,15.67921041]
[1752500250413,15.67921041,166.49,166.45,16.78468397]
[1752500250575,0.06,166.5,166.4,16.78468397]
[1752500251079,0.06,166.5,166.42,16.78468397]
[1752500251287,15.67921041,166.46,166.42,16.78468397]
[1752500251470,0.06,166.5,166.42,16.78468397]
[1752500251672,15.67921041,166.45,166.4,16.78468397]
[1752500251897,0.06,166.5,166.42,15.67921041]
[1752500252092,33.1,166.49,166.44,16.78468397]
[1752500252287,15.67921041,166.48,166.44,16.78468397]
[1752500252473,15.67921041,166.47,166.4,16.78468397]
[1752500252674,15.67921041,166.46,166.42,16.78468397]
[1752500252897,15.67921041,166.47,166.42,15.67921041]
[1752500253093,32.6,166.49,166.44,16.78468397]
[1752500253299,0.06,166.5,166.46,16.78468397]
[1752500253506,0.06,166.5,166.46,32.46389438]
[1752500253709,0.06,166.5,166.48,15.67921041]
[1752500254080,0.06,166.5,166.49,32.46389438]
[1752500254796,0.06,166.5,166.49,122.06389438]
[1752500254989,0.06,166.5,166.49,148.06389438]
[1752500255713,0.06,166.5,166.49,122.06389438]
[1752500256507,0.06,166.5,166.49,106.38468397]
[1752500256883,0.06,166.5,166.49,16.78468397]
[1752500257710,0.06,166.5,166.49,32.46389438]
[1752500258585,0.06,166.5,166.49,16.78468397]
[1752500259034,0.06,166.5,166.49,32.46389438]
[1752500260133,0.06,166.5,166.49,122.06389438]
[1752500260721,0.06,166.55,166.5,16.78468397]
[1752500260899,0.06,166.55,166.54,32.46389438]
[1752500263104,0.06,166.55,166.54,38.95829438]
[1752500263301,0.06,166.55,166.54,128.55829438]
[1752500263722,0.06,166.57,166.56,42.78468397]
[1752500263917,0.06,166.57,166.56,58.46389438]
[1752500264114,0.06,166.57,166.56,74.14310479]
[1752500264627,0.06,166.57,166.56,58.46389438]
[1752500265238,0.06,166.57,166.56,91.08389438]
[1752500265430,0.06,166.57,166.56,58.46389438]
[1752500265633,0.06,166.57,166.56,42.78468397]
[1752500265832,0.06,166.57,166.56,58.46389438]
[1752500266540,0.06,166.57,166.56,16.78468397]
[1752500266749,15.73921041,166.57,166.56,16.78468397]
[1752500267049,0.06,166.57,166.56,16.78468397]
[1752500267743,10.14526681,166.57,166.56,16.78468397]
[1752500267935,0.06,166.57,166.56,16.78468397]
[1752500268134,10.14526681,166.57,166.56,16.78468397]
[1752500268433,16.14874882,166.57,166.56,16.78468397]
[1752500268637,6.06348201,166.57,166.56,16.78468397]
[1752500268836,0.06,166.57,166.56,16.78468397]
[1752500269943,0.06,166.57,166.56,26.86995078]
[1752500271045,0.06,166.57,166.56,16.78468397]
[1752500271231,0.06,166.57,166.56,32.42352199]
[1752500271639,0.2,166.61,166.57,16.78468397]
[1752500271845,0.2,166.61,166.6,32.42352199]
[1752500273353,0.06,166.7,166.68,15.63883802]
[1752500273560,0.06,166.7,166.69,32.42352199]
[1752500276750,0.2,166.72,166.69,32.42352199]
[1752500276751,0.2,166.72,166.7,16.78468397]
[1752500276952,0.2,166.72,166.71,58.42352199]
[1752500278340,0.2,166.72,166.71,91.00352199]
[1752500279152,0.06,166.77,166.72,16.78468397]
[1752500279349,0.06,166.77,166.76,16.78468397]
[1752500279524,0.06,166.77,166.76,32.42352199]
[1752500280329,0.06,166.77,166.74,16.78468397]
[1752500280647,0.06,166.77,166.76,15.63883802]
[1752500281153,0.06,166.77,166.76,16.78468397]
[1752500281353,0.06,166.77,166.76,32.42352199]
[1752500281773,0.06,166.77,166.76,16.78468397]
[1752500282653,0.06,166.77,166.76,15.63883802]
[1752500283329,0.06,166.77,166.76,16.78468397]
[1752500283556,15.69883802,166.77,166.67,32.6]
[1752500283741,15.63883802,166.73,166.68,15.63883802]
[1752500283940,0.06,166.77,166.69,15.63883802]
[1752500284145,0.06,166.77,166.7,49.38468397]
[1752500284459,15.63883802,166.75,166.71,16.78468397]
[1752500284753,15.63883802,166.76,166.73,16.78468397]
[1752500284928,15.63883802,166.75,166.71,16.78468397]
[1752500285133,0.06,166.77,166.71,32.42352199]
[1752500285355,15.63883802,166.75,166.71,32.42352199]
[1752500285542,0.06,166.77,166.71,32.42352199]
[1752500285740,15.63883802,166.76,166.71,32.42352199]
[1752500285937,0.06,166.77,166.71,32.42352199]
[1752500286132,15.63883802,166.76,166.71,32.42352199]
[1752500286542,15.63883802,166.75,166.71,16.78468397]
[1752500286869,0.06,166.77,166.71,32.42352199]
[1752500287065,15.69883802,166.77,166.73,16.78468397]
[1752500287572,0.06,166.77,166.73,15.63883802]
[1752500288251,0.06,166.77,166.76,32.42352199]
[1752500289145,0.06,166.77,166.76,16.78468397]
[1752500289347,15.69883802,166.77,166.76,16.78468397]
[1752500289533,15.69883802,166.77,166.71,16.78468397]
[1752500289735,15.63883802,166.72,166.71,16.78468397]
[1752500289978,15.63883802,166.72,166.68,16.78468397]
[1752500290262,15.63883802,166.72,166.67,32.42352199]
[1752500290460,15.63883802,166.7,166.66,16.78468397]
[1752500290660,15.63883802,166.69,166.66,16.78468397]
[1752500291369,15.63883802,166.69,166.65,32.42352199]
[1752500291666,15.63883802,166.69,166.64,58.42352199]
[1752500291972,15.63883802,166.67,166.63,16.78468397]
[1752500292433,22.64352893,166.75,166.63,16.78468397]
[1752500292839,7.65102519,166.75,166.63,16.78468397]
[1752500293150,15.63883802,166.64,166.61,16.78468397]
[1752500293478,15.63883802,166.64,166.59,16.78468397]
[1752500293769,15.63883802,166.63,166.59,16.78468397]
[1752500293968,15.63883802,166.6,166.55,15.63883802]
[1752500294167,15.63883802,166.6,166.56,32.8]
[1752500294458,15.63883802,166.57,166.54,0.2]
[1752500294667,5.18945653,166.65,166.54,0.2]
[1752500294872,15.63883802,166.55,166.54,0.2]
[1752500296074,6.00126213,166.64,166.54,0.2]
[1752500296239,15.63883802,166.55,166.54,0.2]
[1752500297460,6.00096015,166.64,166.54,0.2]
[1752500297743,15.63883802,166.57,166.54,0.2]
[1752500298178,6.00067225,166.65,166.54,16.98468397]
[1752500298666,15.63883802,166.58,166.54,16.98468397]
[1752500298869,15.63883802,166.57,166.54,0.2]
[1752500299036,15.63883802,166.58,166.54,0.2]
[1752500299240,15.63883802,166.6,166.56,16.78468397]
[1752500299463,15.63883802,166.59,166.56,16.78468397]
[1752500299648,7.53597971,166.66,166.54,0.2]
[1752500299848,15.63883802,166.61,166.56,15.63883802]
[1752500300159,15.63883802,166.61,166.57,16.78468397]
[1752500301066,15.63883802,166.63,166.58,15.63883802]
[1752500301248,15.63883802,166.63,166.59,16.78468397]
[1752500301649,1.6619,166.71,166.61,16.78468397]
[1752500301850,15.63883802,166.68,166.63,15.63883802]
[1752500302154,15.63883802,166.67,166.63,16.78468397]
[1752500302353,15.63883802,166.68,166.63,32.42352199]
[1752500302964,15.63883802,166.68,166.61,16.78468397]
[1752500303270,7.66034211,166.71,166.61,16.78468397]
[1752500303271,15.63883802,166.67,166.61,16.78468397]
[1752500303442,1.6619,166.71,166.63,15.63883802]
[1752500303642,15.63883802,166.69,166.65,16.78468397]
[1752500303959,15.63883802,166.66,166.61,16.78468397]
[1752500304257,22.65647545,166.71,166.59,16.78468397]
[1752500304464,15.63883802,166.6,166.55,22.15403802]
[1752500304669,15.63883802,166.59,166.55,39.6552]
[1752500304966,15.63883802,166.59,166.56,16.78468397]
[1752500305165,15.63883802,166.68,166.56,16.78468397]
[1752500305166,15.63883802,166.6,166.56,16.78468397]
[1752500305756,15.63883802,166.62,166.58,16.78468397]
[1752500305966,15.63883802,166.6,166.58,16.78468397]
[1752500306167,15.63883802,166.6,166.55,55.29403802]
[1752500306168,15.63883802,166.6,166.56,16.78468397]
[1752500306471,15.63883802,166.59,166.56,16.78468397]
[1752500306769,33.14,166.69,166.6,16.78468397]
[1752500307065,15.63883802,166.63,166.6,89.6]
[1752500307276,15.63883802,166.63,166.61,16.78468397]
[1752500307571,15.63883802,166.64,166.61,16.78468397]
[1752500308157,15.63883802,166.62,166.6,89.6]
[1752500308359,15.63883802,166.61,166.59,106.38468397]
[1752500308558,15.63883802,166.6,166.59,106.38468397]
[1752500309883,15.63883802,166.6,166.59,89.6]
[1752500310384,6.00105219,166.64,166.59,89.6]
[1752500310594,15.63883802,166.6,166.59,89.6]
[1752500311358,15.63883802,166.6,166.54,59.24]
[1752500311359,21.64144564,166.6,166.56,89.6]
[1752500311683,15.63883802,166.57,166.55,106.38468397]
[1752500311867,15.63883802,166.56,166.55,106.38468397]
[1752500312974,15.63883802,166.56,166.55,89.6]
[1752500313176,6.00214614,166.61,166.55,89.6]
[1752500313363,15.63883802,166.56,166.55,16.78468397]
[1752500313876,7.53356897,166.62,166.55,16.78468397]
[1752500314066,15.63883802,166.58,166.55,106.38468397]
[1752500314989,7.53358054,166.62,166.55,106.38468397]
[1752500314990,10.08529022,166.56,166.55,89.6]
[1752500315774,6.00204069,166.61,166.55,89.6]
[1752500315978,10.08529022,166.56,166.55,89.6]
[1752500317076,10.08529022,166.58,166.56,16.78468397]
[1752500317281,10.08529022,166.6,166.56,16.78468397]
[1752500317486,10.08529022,166.57,166.56,16.78468397]
[1752500317852,7.53354629,166.62,166.56,16.78468397]
[1752500318058,10.08529022,166.61,166.56,26.86997419]
[1752500318594,10.08529022,166.64,166.58,16.78468397]
[1752500318754,10.08529022,166.59,166.58,16.78468397]
[1752500318955,7.66339554,166.66,166.55,26.86997419]
[1752500319162,7.66339554,166.66,166.56,10.08529022]
[1752500319364,7.66339554,166.66,166.56,16.78468397]
[1752500319595,10.08529022,166.61,166.57,16.78468397]
[1752500319903,10.08529022,166.58,166.57,106.38468397]
[1752500320061,22.66399556,166.66,166.57,106.38468397]
[1752500320258,7.66339554,166.66,166.57,10.08529022]
[1752500320463,10.08529022,166.63,166.59,16.78468397]
[1752500320682,10.08529022,166.63,166.59,106.38468397]
[1752500320902,10.08529022,166.61,166.59,106.38468397]
[1752500321064,22.66399556,166.66,166.55,32.96]
[1752500321065,10.08529022,166.62,166.57,16.78468397]
[1752500321265,10.08529022,166.62,166.58,16.78468397]
[1752500322165,1.6629,166.66,166.59,10.08529022]
[1752500322366,10.08529022,166.65,166.61,16.78468397]
[1752500322673,10.08529022,166.64,166.61,16.78468397]
[1752500323275,10.08529022,166.66,166.61,10.08529022]
[1752500323593,6.2994,166.69,166.6,26.86997419]
[1752500323594,10.08529022,166.65,166.6,26.86997419]
[1752500324278,10.08529022,166.67,166.61,10.08529022]
[1752500324477,7.6117386,166.7,166.63,16.78468397]
[1752500324781,11.69819022,166.7,166.63,89.6]
[1752500324979,10.08529022,166.71,166.66,10.08529022]
[1752500325184,10.08529022,166.71,166.67,16.78468397]
[1752500325362,10.08529022,166.7,166.67,16.78468397]
[1752500325568,5.99861141,166.71,166.66,89.6]
[1752500325801,10.08529022,166.69,166.66,89.6]
[1752500325972,10.08529022,166.68,166.66,89.6]
[1752500326174,10.08529022,166.67,166.66,89.6]
[1752500326386,10.08529022,166.68,166.64,106.38468397]
[1752500326588,10.08529022,166.69,166.64,106.38468397]
[1752500326787,10.08529022,166.69,166.64,116.46997419]
[1752500327190,38.89817249,166.72,166.64,116.46997419]
[1752500327191,10.08529022,166.68,166.64,106.38468397]
[1752500327887,32.9,166.72,166.64,106.38468397]
[1752500328092,10.08529022,166.7,166.64,106.38468397]
[1752500328309,10.08529022,166.73,166.69,16.78468397]
[1752500328467,11.64679022,166.74,166.69,26.86997419]
[1752500328869,5.99676479,166.76,166.69,26.86997419]
[1752500329078,10.08529022,166.74,166.69,26.86997419]
[1752500329296,10.08529022,166.75,166.71,16.78468397]
[1752500329494,10.08529022,166.74,166.71,16.78468397]
[1752500329694,10.08529022,166.74,166.69,10.08529022]
[1752500330315,10.08529022,166.73,166.69,16.78468397]
[1752500330593,10.08529022,166.75,166.71,16.78468397]
[1752500330796,10.08529022,166.72,166.67,16.78468397]
[1752500331106,10.08529022,166.69,166.67,16.78468397]
[1752500331270,10.08529022,166.69,166.66,16.78468397]
[1752500331687,10.08529022,166.7,166.66,16.78468397]
[1752500331889,10.08529022,166.72,166.68,16.78468397]
[1752500332284,5.99664188,166.76,166.68,10.08529022]
[1752500332491,10.08529022,166.72,166.68,16.78468397]
[1752500332690,10.08529022,166.71,166.67,16.78468397]
[1752500333183,10.08529022,166.72,166.67,16.78468397]
[1752500333499,10.08529022,166.71,166.66,26.86997419]
[1752500333996,0.06,166.73,166.66,16.78468397]
[1752500334298,0.06,166.73,166.71,16.78468397]
[1752500334597,0.06,166.73,166.69,10.08529022]
[1752500335097,0.06,166.73,166.71,16.78468397]
[1752500335302,0.06,166.73,166.71,26.86997419]
[1752500335487,0.06,166.73,166.69,16.78468397]
[1752500335693,0.06,166.73,166.71,16.78468397]
[1752500336078,0.06,166.73,166.72,26.86997419]
[1752500336388,0.06,166.73,166.72,16.78468397]
[1752500337819,10.14529022,166.73,166.65,16.78468397]
[1752500337974,0.06,166.73,166.65,59.52997419]
[1752500338177,10.08529022,166.71,166.67,16.78468397]
[1752500338380,0.06,166.73,166.67,16.78468397]
[1752500338381,10.08529022,166.7,166.67,16.78468397]
[1752500338593,10.08529022,166.7,166.66,16.78468397]
[1752500338800,10.08529022,166.67,166.64,0.03]
[1752500338981,10.08529022,166.66,166.64,0.03]
[1752500339400,10.08529022,166.67,166.64,0.03]
[1752500339697,10.08529022,166.7,166.65,10.08529022]
[1752500339904,10.08529022,166.71,166.67,16.78468397]
[1752500340685,10.08529022,166.72,166.67,10.08529022]
[1752500341821,10.08529022,166.68,166.64,58.67]
[1752500341982,10.08529022,166.68,166.65,16.78468397]
[1752500342294,10.08529022,166.66,166.64,0.03]
[1752500342493,10.08529022,166.67,166.64,0.03]
[1752500343610,0.06,166.73,166.64,16.81468397]
[1752500343793,0.06,166.73,166.64,106.41468397]
[1752500344115,10.08529022,166.67,166.64,106.41468397]
[1752500345387,10.08529022,166.65,166.64,89.63]
[1752500345593,10.08529022,166.65,166.64,0.03]
[1752500346607,16.08589028,166.65,166.64,0.03]
[1752500346812,10.08529022,166.65,166.64,0.03]
[1752500347006,16.08589028,166.65,166.64,0.03]
[1752500348625,31.08739043,166.65,166.57,0.03]
[1752500348921,10.08529022,166.58,166.57,0.03]
[1752500349090,10.08529022,166.6,166.57,0.03]
[1752500349411,32.5,166.64,166.57,0.03]
[1752500349412,10.08529022,166.58,166.57,0.03]
[1752500350225,16.08841184,166.58,166.57,0.03]
[1752500350706,10.08529022,166.58,166.57,0.03]
[1752500351886,16.08841184,166.58,166.57,0.03]
[1752500352516,6.00312162,166.58,166.57,0.03]
[1752500352898,10.08529022,166.58,166.57,0.03]
[1752500353821,10.08529022,166.59,166.57,0.03]
[1752500354002,10.08529022,166.58,166.57,0.03]
[1752500354201,10.08529022,166.59,166.57,0.03]
[1752500355109,10.08529022,166.58,166.57,0.03]
[1752500355325,10.08529022,166.59,166.57,0.03]
[1752500355619,10.08529022,166.59,166.57,16.81468397]
[1752500356196,10.08529022,166.6,166.57,16.81468397]
[1752500356798,10.08529022,166.59,166.57,16.81468397]
[1752500357006,10.08529022,166.61,166.57,106.41468397]
[1752500357922,10.08529022,166.59,166.57,106.41468397]
[1752500358125,10.08529022,166.58,166.57,106.41468397]
[1752500358424,10.08529022,166.58,166.57,16.81468397]
[1752500359002,10.08529022,166.58,166.57,0.03]
[1752500359308,10.08529022,166.6,166.57,0.03]
[1752500359501,10.08529022,166.59,166.57,0.03]
[1752500360406,1.5468,166.67,166.58,10.08529022]
[1752500360720,10.08529022,166.68,166.64,16.78468397]
[1752500361128,10.08529022,166.7,166.64,10.08529022]
[1752500361507,10.08529022,166.7,166.59,49.18468397]
[1752500361508,10.08529022,166.68,166.63,10.08529022]
[1752500361806,10.08529022,166.68,166.64,16.78468397]
[1752500362208,10.08529022,166.68,166.62,10.08529022]
[1752500362529,10.08529022,166.68,166.6,16.78468397]
[1752500362530,10.08529022,166.63,166.6,16.78468397]
[1752500363210,10.08529022,166.62,166.6,16.78468397]
[1752500363728,10.08529022,166.61,166.58,6.0972]
[1752500364027,10.08529022,166.62,166.57,16.81468397]
[1752500364198,10.08529022,166.62,166.57,26.89997419]
[1752500364402,10.08529022,166.62,166.57,16.81468397]
[1752500364629,10.08529022,166.61,166.57,16.81468397]
[1752500364835,10.08529022,166.62,166.57,16.81468397]
[1752500365203,10.08529022,166.59,166.57,16.81468397]
[1752500365820,10.08529022,166.6,166.57,16.81468397]
[1752500366024,6.00107438,166.64,166.57,26.89997419]
[1752500366220,6.00107438,166.64,166.57,16.81468397]
[1752500366221,10.08529022,166.61,166.57,16.81468397]
[1752500366710,10.08529022,166.62,166.57,26.89997419]
[1752500367128,10.08529022,166.61,166.57,16.81468397]
[1752500367329,10.08529022,166.62,166.57,26.89997419]
[1752500367521,5.99916011,166.69,166.59,16.78468397]
[1752500367722,10.08529022,166.69,166.63,26.86997419]
[1752500367926,10.08529022,166.69,166.65,16.78468397]
[1752500368111,10.08529022,166.69,166.64,16.78468397]
[1752500368307,0.06,166.72,166.64,16.78468397]
[1752500368618,10.14529022,166.72,166.66,10.08529022]
[1752500368925,0.06,166.72,166.69,16.78468397]
[1752500369143,0.06,166.72,166.71,16.78468397]
[1752500369441,0.06,166.72,166.7,116.46997419]
[1752500369616,0.06,166.72,166.7,106.38468397]
[1752500369935,0.06,166.72,166.71,10.08529022]
[1752500372531,0.06,166.72,166.71,116.46997419]
[1752500372907,0.06,166.72,166.71,106.38468397]
[1752500373634,0.06,166.72,166.71,116.46997419]
[1752500375932,0.06,166.72,166.71,106.38468397]
[1752500376834,10.14529022,166.72,166.71,106.38468397]
[1752500377144,10.14529022,166.72,166.68,16.78468397]
[1752500377317,10.08529022,166.69,166.68,16.78468397]
[1752500377734,10.08529022,166.7,166.68,16.78468397]
[1752500377935,10.08529022,166.69,166.67,89.6]
[1752500378235,0.06,166.72,166.67,89.6]
[1752500378236,10.08529022,166.68,166.67,89.6]
[1752500378422,10.08529022,166.68,166.64,138.62468397]
[1752500378625,10.08529022,166.67,166.64,138.62468397]
[1752500378828,5.99847117,166.71,166.65,16.78468397]
[1752500379028,10.08529022,166.68,166.65,16.78468397]
[1752500379234,6.05808536,166.72,166.65,16.78468397]
[1752500379442,6.05808536,166.72,166.63,10.08529022]
[1752500379443,10.08529022,166.69,166.64,10.08529022]
[1752500379636,10.08529022,166.68,166.63,26.86997419]
[1752500380027,10.08529022,166.7,166.64,10.08529022]
[1752500380229,10.08529022,166.69,166.64,10.08529022]
[1752500380545,10.08529022,166.68,166.63,26.86997419]
[1752500380842,10.08529022,166.68,166.65,16.78468397]
[1752500381038,10.08529022,166.69,166.65,16.78468397]
[1752500381547,10.08529022,166.69,166.65,26.86997419]
[1752500382049,10.08529022,166.68,166.65,16.78468397]
[1752500382429,10.08529022,166.69,166.65,16.78468397]